fUST/lending_fUST_20240117
["ID","MTS","AMOUNT","RATE_DAILY","PERIOD"]
[311849242,1705465839933,-500.0,0.00030135,4]
[311849244,1705465839942,-500.0,0.00030135,4]
[311849245,1705465839951,-500.0,0.00030135,4]
[311849246,1705465839962,-480.77322311,0.00030135,4]
[311849247,1705465839971,-561.04556538,0.00030135,4]
[311849248,1705465839980,-500.0,0.00030135,4]
[311849249,1705465839990,-500.0,0.00030135,4]
[311849250,1705465839999,-500.0,0.00030135,4]
[311849251,1705465840011,-231.7989992,0.00030135,4]
[311849252,1705465840020,-500.0,0.00030135,4]
[311849253,1705465840029,-500.0,0.00030135,4]
[311849254,1705465840040,-500.0,0.00030135,4]
[311849255,1705465840049,-500.0,0.00030135,4]
[311849256,1705465840059,-500.0,0.00030135,4]
[311849257,1705465840068,-500.0,0.00030135,4]
[311849258,1705465840078,-157.96146211,0.00030135,4]
[311849259,1705465840087,-500.0,0.00030135,4]
[311849260,1705465840096,-500.0,0.00030135,4]
[311849261,1705465840105,-580.32160343,0.00030135,4]
[311849262,1705465840115,-500.0,0.00030135,4]
[311849263,1705465840124,-500.0,0.00030135,4]
[311849264,1705465840134,-500.0,0.00030135,4]
[311849265,1705465840146,-500.0,0.00030135,4]
[311849266,1705465840157,-500.0,0.00030135,4]
[311849267,1705465840166,-500.0,0.00030135,4]
[311849268,1705465840176,-500.0,0.00030135,4]
[311849269,1705465840186,-500.0,0.00030135,4]
[311849270,1705465840195,-500.0,0.00030135,4]
[311849271,1705465840204,-500.0,0.00030135,4]
[311849272,1705465840214,-500.0,0.00030135,4]
[311849273,1705465840224,-500.0,0.00030135,4]
[311849274,1705465840233,-500.0,0.00030135,4]
[311849275,1705465840242,-500.0,0.00030135,4]
[311849276,1705465840252,-500.0,0.00030135,4]
[311849277,1705465840261,-500.0,0.00030135,4]
[311849278,1705465840271,-500.0,0.00030135,4]
[311849279,1705465840281,-500.0,0.00030135,4]
[311849280,1705465840290,-151.0,0.00030136,2]
[311849281,1705465840299,-151.0,0.00030136,2]
[311849282,1705465840308,-151.0,0.00030136,2]
[311849283,1705465840317,-151.0,0.00030136,2]
[311849284,1705465840326,-151.0,0.00030136,2]
[311849285,1705465840335,-258.27707,0.00030136,2]
[311849286,1705465840344,-151.0,0.00030136,2]
[311849287,1705465840353,-151.0,0.00030136,2]
[311849288,1705465840365,-151.0,0.00030136,2]
[311849289,1705465840374,-282.0,0.00030136,2]
[311849290,1705465840385,-154.9690062,0.00030136,2]
[311849291,1705465840394,-501.5399401,0.00030136,2]
[311849292,1705465840403,-429.64655054,0.00030136,2]
[311849293,1705465840413,-500.0,0.00030136,2]
[311849294,1705465840422,-500.0,0.00030136,2]
[311849295,1705465840432,-500.0,0.00030136,2]
[311849296,1705465840442,-500.0,0.00030136,2]
[311849297,1705465840451,-500.0,0.00030136,2]
[311849298,1705465840460,-500.0,0.00030136,2]
[311849299,1705465840469,-561.06752214,0.00030136,2]
[311849300,1705465840478,-767.95,0.00030136,2]
[311849301,1705465840487,-500.0,0.00030136,2]
[311849302,1705465840496,-508.86405407,0.00030136,2]
[311849303,1705465840505,-500.0,0.00030136,2]
[311849304,1705465840515,-378.96489924,0.00030136,2]
[311849305,1705465840525,-502.98829358,0.00030136,2]
[311849306,1705465840535,-500.0,0.00030136,2]
[311849307,1705465840544,-500.0,0.00030136,2]
[311849308,1705465840554,-500.0,0.00030136,2]
[311849309,1705465840563,-500.90966369,0.00030136,2]
[311849310,1705465840572,-500.0,0.00030136,2]
[311849311,1705465840581,-500.0,0.00030136,2]
[311849312,1705465840591,-500.0,0.00030136,2]
[311849313,1705465840601,-366.78877611,0.00030136,2]
[311849314,1705465840611,-500.0,0.00030136,2]
[311849315,1705465840621,-416.01915316,0.00030136,2]
[311849316,1705465840630,-500.0,0.00030136,2]
[311849318,1705465840639,-500.0,0.00030136,2]
[311849320,1705465840648,-500.0,0.00030136,2]
[311849321,1705465840657,-500.0,0.00030136,2]
[311849322,1705465840666,-500.0,0.00030136,2]
[311849323,1705465840675,-500.0,0.00030136,2]
[311849324,1705465840684,-500.0,0.00030136,2]
[311849325,1705465840694,-500.0,0.00030136,2]
[311849326,1705465840703,-500.0,0.00030136,2]
[311849327,1705465840712,-500.0,0.00030136,2]
[311849328,1705465840721,-500.0,0.00030136,2]
[311849329,1705465840730,-500.0,0.00030136,2]
[311849330,1705465840740,-500.0,0.00030136,2]
[311849331,1705465840750,-500.0,0.00030136,2]
[311849332,1705465840760,-548.76,0.00030136,2]
[311849333,1705465840769,-363.32405101,0.00030136,2]
[311849334,1705465840778,-500.0,0.00030136,2]
[311849335,1705465840787,-500.0,0.00030136,2]
[311849336,1705465840796,-500.0,0.00030136,2]
[311849337,1705465840806,-500.0,0.00030136,2]
[311849338,1705465840815,-500.0,0.00030136,2]
[311849339,1705465840823,-284.73494924,0.00030136,2]
[311849340,1705465840891,-500.0,0.00030136,2]
[311849341,1705465840900,-500.0,0.00030136,2]
[311849342,1705465840909,-502.99980085,0.00030136,2]
[311849343,1705465840918,-613.50937689,0.00030136,2]
[311849344,1705465840927,-500.0,0.00030136,2]
[311849345,1705465840936,-500.0,0.00030136,2]
[311849346,1705465840945,-500.0,0.00030136,2]
[311849347,1705465840954,-456.79877671,0.00030136,2]
[311849348,1705465840964,-500.0,0.00030136,2]
[311849349,1705465840973,-569.61165838,0.00030136,2]
[311849350,1705465840982,-513.66,0.00030136,2]
[311849351,1705465840991,-500.0,0.00030136,2]
[311849352,1705465841000,-500.0,0.00030136,2]
[311849353,1705465841011,-500.0,0.00030136,2]
[311849354,1705465841020,-500.0,0.00030136,2]
[311849355,1705465841029,-500.0,0.00030136,2]
[311849356,1705465841038,-500.0,0.00030136,2]
[311849357,1705465841047,-198.56564252,0.00030136,2]
[311849358,1705465841056,-500.0,0.00030136,2]
[311849359,1705465841065,-179.25954201,0.00030136,2]
[311849360,1705465841075,-500.0,0.00030136,2]
[311849361,1705465841084,-500.0,0.00030136,2]
[311849362,1705465841094,-839.27,0.00030136,2]
[311849363,1705465841103,-414.98765189,0.00030136,2]
[311849364,1705465841112,-500.0,0.00030136,2]
[311849365,1705465841130,-500.0,0.00030136,2]
[311849366,1705465841141,-500.68015708,0.00030136,2]
[311849367,1705465841152,-500.0,0.00030136,2]
[311849368,1705465841162,-500.0,0.00030136,2]
[311849369,1705465841171,-710.27,0.00030136,2]
[311849370,1705465841180,-601.97581751,0.00030136,2]
[311849371,1705465841189,-500.0,0.00030136,2]
[311849372,1705465841199,-500.0,0.00030136,2]
[311849373,1705465841208,-500.0,0.00030136,2]
[311849374,1705465841217,-559.59,0.00030136,2]
[311849375,1705465841226,-500.0,0.00030136,2]
[311849376,1705465841235,-497.37968749,0.00030136,2]
[311849377,1705465841246,-500.0,0.00030136,2]
[311849378,1705465841255,-786.82,0.00030136,2]
[311849379,1705465841265,-500.0,0.00030136,2]
[311849380,1705465841274,-500.0,0.00030136,2]
[311849381,1705465841284,-500.0,0.00030136,2]
[311849382,1705465841292,-500.0,0.00030136,2]
[311849383,1705465841302,-509.34,0.00030136,2]
[311849384,1705465841312,-1702.82,0.00030136,2]
[311849385,1705465841322,-500.0,0.00030136,2]
[311849386,1705465841331,-2251.41,0.00030136,2]
[311849387,1705465841340,-500.0,0.00030136,2]
[311849388,1705465841349,-500.0,0.00030136,2]
[311849389,1705465841359,-500.0,0.00030136,2]
[311849390,1705465841368,-500.0,0.00030136,2]
[311849391,1705465841378,-500.0,0.00030136,2]
[311849392,1705465841387,-500.0,0.00030136,2]
[311849393,1705465841397,-546.39,0.00030136,2]
[311849394,1705465841406,-500.0,0.00030136,2]
[311849395,1705465841416,-500.0,0.00030136,2]
[311849396,1705465841425,-500.0,0.00030136,2]
[311849397,1705465841434,-200.0,0.00030136,2]
[311849398,1705465841443,-500.0,0.00030136,2]
[311849399,1705465841452,-500.0,0.00030136,2]
[311849400,1705465841461,-500.0,0.00030136,2]
[311849401,1705465841471,-500.0,0.00030136,2]
[311849402,1705465841480,-500.0,0.00030136,2]
[311849403,1705465841489,-500.0,0.00030136,2]
[311849404,1705465841498,-500.0,0.00030136,2]
[311849405,1705465841507,-1465.06,0.00030136,2]
[311849406,1705465841516,-500.0,0.00030136,2]
[311849407,1705465841526,-500.0,0.00030136,2]
[311849408,1705465841535,-446.21201326,0.00030136,2]
[311849409,1705465841544,-1000.0,0.00030136,2]
[311849410,1705465841554,-503.76227161,0.00030136,2]
[311849411,1705465841563,-500.0,0.00030136,2]
[311849412,1705465841572,-500.0,0.00030136,2]
[311849413,1705465841581,-212.17035358,0.00030136,2]
[311849414,1705465841591,-500.0,0.00030136,5]
[311849415,1705465841600,-500.0,0.00030136,2]
[311849416,1705465841610,-500.0,0.00030136,2]
[311849417,1705465841619,-474.31978255,0.00030136,2]
[311849418,1705465841628,-518.05608852,0.00030136,2]
[311849419,1705465841637,-500.0,0.00030136,2]
[311849420,1705465841646,-500.0,0.00030136,2]
[311849421,1705465841655,-408.68114536,0.00030136,2]
[311849422,1705465841664,-500.0,0.00030136,2]
[311849423,1705465841674,-500.0,0.00030136,2]
[311849424,1705465841683,-400.0,0.00030136,2]
[311849425,1705465841693,-488.51613457,0.00030136,2]
[311849426,1705465841702,-500.0,0.00030136,2]
[311849427,1705465841711,-500.0,0.00030136,2]
[311849428,1705465841720,-500.0,0.00030136,2]
[311849429,1705465841729,-380.81535745,0.00030136,2]
[311849430,1705465841738,-500.0,0.00030136,2]
[311849431,1705465841747,-500.0,0.00030136,2]
[311849432,1705465841756,-500.80858493,0.00030136,2]
[311849433,1705465841765,-647.47145029,0.00030136,2]
[311849434,1705465841775,-500.0,0.00030136,2]
[311849435,1705465841785,-500.0,0.00030136,2]
[311849436,1705465841795,-500.0,0.00030136,2]
[311849437,1705465841804,-960.13,0.00030136,2]
[311849438,1705465841813,-542.29561648,0.00030136,2]
[311849439,1705465841822,-500.0,0.00030136,2]
[311849440,1705465841831,-500.0,0.00030136,2]
[311849441,1705465841841,-500.0,0.00030136,2]
[311849442,1705465841850,-500.0,0.00030136,2]
[311849443,1705465841859,-503.96709031,0.00030136,2]
[311849444,1705465841868,-531.17701106,0.00030136,2]
[311849445,1705465841878,-502.16920952,0.00030136,2]
[311849446,1705465841887,-500.0,0.00030136,2]
[311849447,1705465841897,-1000.0,0.00030136,2]
[311849448,1705465841906,-500.0,0.00030136,2]
[311849449,1705465841915,-3050.76,0.00030136,2]
[311849450,1705465841924,-500.0,0.00030136,2]
[311849451,1705465841933,-6893.61,0.00030136,2]
[311849452,1705465841943,-1367.01,0.00030136,2]
[311849453,1705465841952,-500.0,0.00030136,2]
[311849454,1705465841961,-500.0,0.00030136,2]
[311849455,1705465841970,-293.00812236,0.00030136,2]
[311849456,1705465841979,-500.0,0.00030136,2]
[311849457,1705465842048,-500.6730662,0.00030136,2]
[311849458,1705465842057,-500.0,0.00030136,2]
[311849459,1705465842066,-2172.45,0.00030136,2]
[311849460,1705465842075,-537.79242082,0.00030136,2]
[311849461,1705465842084,-4966.11,0.00030136,2]
[311849462,1705465842093,-622.45133855,0.00030136,2]
[311849463,1705465842102,-500.0,0.00030136,2]
[311849464,1705465842111,-500.0,0.00030136,2]
[311849465,1705465842125,-500.0,0.00030136,2]
[311849466,1705465842135,-7518.98,0.00030136,2]
[311849467,1705465842145,-500.0,0.00030136,2]
[311849469,1705465842154,-500.0,0.00030136,2]
[311849471,1705465842165,-500.0,0.00030136,2]
[311849473,1705465842174,-500.0,0.00030136,2]
[311849475,1705465842183,-500.0,0.00030136,2]
[311849477,1705465842193,-1526.8,0.00030136,2]
[311849479,1705465842203,-500.0,0.00030136,2]
[311849482,1705465842212,-254.97616014,0.00030136,2]
[311849483,1705465842222,-852.75,0.00030136,2]
[311849485,1705465842230,-505.27642083,0.00030136,2]
[311849486,1705465842240,-236.06186457,0.00030136,2]
[311849488,1705465842250,-500.0,0.00030136,2]
[311849489,1705465842260,-500.0,0.00030136,2]
[311849491,1705465842269,-500.0,0.00030136,2]
[311849492,1705465842278,-500.0,0.00030136,2]
[311849494,1705465842287,-500.0,0.00030136,2]
[311849495,1705465842296,-500.0,0.00030136,2]
[311849497,1705465842305,-500.0,0.00030136,2]
[311849498,1705465842314,-620.75,0.00030136,2]
[311849500,1705465842323,-500.0,0.00030136,2]
[311849502,1705465842333,-1153.24,0.00030136,2]
[311849503,1705465842342,-500.0,0.00030136,2]
[311849505,1705465842351,-896.17,0.00030136,2]
[311849506,1705465842360,-899.06,0.00030136,2]
[311849508,1705465842369,-500.0,0.00030136,2]
[311849509,1705465842378,-500.0,0.00030136,2]
[311849511,1705465842387,-500.98477589,0.00030136,2]
[311849512,1705465842396,-500.0,0.00030136,2]
[311849514,1705465842405,-500.0,0.00030136,2]
[311849516,1705465842415,-503.18903626,0.00030136,2]
[311849517,1705465842424,-500.0,0.00030136,2]
[311849519,1705465842434,-531.37845023,0.00030136,2]
[311849521,1705465842444,-562.58,0.00030136,2]
[311849522,1705465842453,-500.0,0.00030136,2]
[311849524,1705465842463,-500.0,0.00030136,2]
[311849526,1705465842472,-556.49,0.00030136,2]
[311849527,1705465842482,-502.03648603,0.00030136,2]
[311849529,1705465842491,-500.0,0.00030136,2]
[311849531,1705465842500,-500.0,0.00030136,2]
[311849532,1705465842511,-1881.19,0.00030136,2]
[311849533,1705465842520,-500.0,0.00030136,2]
[311849534,1705465842530,-500.0,0.00030136,2]
[311849535,1705465842539,-500.0,0.00030136,2]
[311849537,1705465842548,-500.0,0.00030136,2]
[311849539,1705465842558,-500.0,0.00030136,2]
[311849541,1705465842567,-500.0,0.00030136,2]
[311849543,1705465842577,-500.0,0.00030136,2]
[311849545,1705465842587,-500.0,0.00030136,2]
[311849546,1705465842596,-500.0,0.00030136,2]
[311849549,1705465842605,-500.0,0.00030136,2]
[311849551,1705465842615,-500.0,0.00030136,2]
[311849552,1705465842623,-500.0,0.00030136,2]
[311849553,1705465842633,-1715.03,0.00030136,2]
[311849554,1705465842642,-500.0,0.00030136,2]
[311849555,1705465842651,-3318.79,0.00030136,2]
[311849556,1705465842660,-500.0,0.00030136,2]
[311849557,1705465842670,-501.70956628,0.00030136,2]
[311849558,1705465842679,-1615.76,0.00030136,2]
[311849559,1705465842688,-500.0,0.00030136,2]
[311849560,1705465842697,-500.0,0.00030136,2]
[311849561,1705465842707,-500.0,0.00030136,2]
[311849562,1705465842716,-500.0,0.00030136,2]
[311849563,1705465842725,-500.0,0.00030136,2]
[311849564,1705465842734,-500.0,0.00030136,2]
[311849565,1705465842744,-500.0,0.00030136,2]
[311849566,1705465842753,-8205.38,0.00030136,2]
[311849567,1705465842763,-500.0,0.00030136,2]
[311849568,1705465842772,-551.84989273,0.00030136,2]
[311849569,1705465842782,-500.0,0.00030136,2]
[311849570,1705465842791,-500.0,0.00030136,2]
[311849571,1705465842800,-500.0,0.00030136,2]
[311849572,1705465842810,-10268.85,0.00030136,2]
[311849573,1705465842819,-502.08286688,0.00030136,2]
[311849574,1705465842829,-561.23,0.00030136,2]
[311849576,1705465842839,-3095.41,0.00030136,2]
[311849577,1705465842848,-1712.8,0.00030136,2]
[311849578,1705465842858,-20127.51,0.00030136,2]
[311849579,1705465842867,-546.99,0.00030136,2]
[311849580,1705465842877,-500.0,0.00030136,2]
[311849582,1705465842886,-500.0,0.00030136,2]
[311849583,1705465842895,-1009.85496789,0.00030136,2]
[311849584,1705465842904,-500.0,0.00030136,2]
[311849585,1705465842914,-2854.78,0.00030136,2]
[311849586,1705465842923,-500.0,0.00030136,2]
[311849587,1705465842932,-500.0,0.00030136,2]
[311849588,1705465842942,-500.0,0.00030136,2]
[311849589,1705465842951,-502.66986973,0.00030136,2]
[311849590,1705465842960,-500.0,0.00030136,2]
[311849591,1705465842969,-500.0,0.00030136,2]
[311849592,1705465842979,-500.0,0.00030136,2]
[311849593,1705465842988,-214.55184681,0.00030136,2]
[311849594,1705465842997,-500.0,0.00030136,2]
[311849595,1705465843007,-503.79040743,0.00030136,2]
[311849596,1705465843016,-500.0,0.00030136,4]
[311849597,1705465843025,-584.58,0.00030136,2]
[311849598,1705465843035,-150.0,0.00030136,2]
[311849599,1705465843044,-500.0,0.00030136,2]
[311849600,1705465843103,-500.0,0.00030136,2]
[311849601,1705465843119,-500.0,0.00030136,2]
[311849602,1705465843132,-222.24610265,0.00030136,2]
[311849603,1705465843141,-500.0,0.00030136,2]
[311849604,1705465843150,-500.0,0.00030136,2]
[311849605,1705465843159,-500.0,0.00030136,2]
[311849606,1705465843170,-37188.53,0.00030136,2]
[311849607,1705465843178,-500.0,0.00030136,2]
[311849608,1705465843187,-500.0,0.00030136,2]
[311849609,1705465843196,-949.18,0.00030136,2]
[311849610,1705465843207,-500.0,0.00030136,2]
[311849611,1705465843216,-500.0,0.00030136,2]
[311849612,1705465843226,-734.58,0.00030136,7]
[311849613,1705465843235,-500.0,0.00030136,2]
[311849614,1705465843245,-500.0,0.00030136,2]
[311849615,1705465843254,-328.78610997,0.00030136,2]
[311849616,1705465843265,-500.0,0.00030136,2]
[311849617,1705465843274,-500.0,0.00030136,2]
[311849618,1705465843284,-279.92783558,0.00030136,2]
[311849619,1705465843635,-154.98450155,0.00018972,3]
[311849620,1705465843644,-154.98450155,0.0002824,2]
[311849621,1705465843655,-220.07216442,0.00030136,2]
[311849622,1705465843664,-561.5272051,0.00030136,2]
[311849623,1705465843776,164.3622139,0.00017911,2]
[311849640,1705466436643,-2932.91529021,0.00018752,2]
[311849641,1705466436809,-59.85541409,0.00018752,2]
[311849642,1705466442371,-4713.17445985,0.00018751,2]
[311849643,1705466442490,-96.18723387,0.00018751,2]
[311849644,1705466446972,-543.70180801,0.0001875,2]
[311849645,1705466447260,-11.09595526,0.0001875,2]
[311849646,1705466468533,-6528.57712681,0.00018573,2]
[311849647,1705466468628,-133.23626789,0.00018573,2]
[311849648,1705466493487,-245.97432418,0.00018423,2]
[311849649,1705466493512,-165.42166714,0.00018424,2]
[311849650,1705466493597,-8.39583656,0.00018424,2]
[311849651,1705466494794,170.72767926,0.00018423,2]
[311849653,1705466524756,-245.0,0.00018422,2]
[311849654,1705466524950,-5.0,0.00018422,2]
[311849658,1705466555916,-5067.87028894,0.00018417,2]
[311849659,1705466556194,-103.42592426,0.00018417,2]
[311849660,1705466563037,-238.84670642,0.00018416,2]
[311849661,1705466563188,-4.87442258,0.00018416,2]
[311849663,1705466579822,-12000.0,0.00018415,2]
[311849664,1705466579918,-12000.0,0.00018415,2]
[311849665,1705466580030,-900.0,0.00018415,2]
[311849699,1705466663148,6013.4651163,0.00017987,2]
[311849709,1705466859756,-210.0,0.00018306,2]
[311849710,1705466860003,-3.2520676,0.00018306,2]
[311849733,1705467032039,-873.51620875,0.00018855,2]
[311849734,1705467032049,-178.58004626,0.00018856,2]
[311849735,1705467032058,-154.9690062,0.00018856,2]
[311849736,1705467032068,-6603.08681024,0.00018856,2]
[311849737,1705467032077,-323.26735776,0.00018857,2]
[311849738,1705467032087,-154.9690062,0.00018857,2]
[311849739,1705467032096,-164.97376149,0.00018857,2]
[311849741,1705467032106,-19850.23525334,0.00018857,2]
[311849743,1705467032115,-20883.4067582,0.00018858,2]
[311849745,1705467032123,-1588.60568926,0.00018858,2]
[311849747,1705467032132,-4809.36169372,0.00018859,2]
[311849749,1705467032142,-245.97432418,0.00018859,2]
[311849751,1705467032151,-230.62037245,0.00018859,2]
[311849753,1705467032160,-554.79776327,0.00018859,2]
[311849755,1705467032169,-294.58131325,0.00018859,2]
[311849756,1705467032179,-5179.10467394,0.00018859,2]
[311849757,1705467032188,-606.8708796,0.0001886,2]
[311849758,1705467032197,-154.9690062,0.0001886,3]
[311849759,1705467032206,-208.66038293,0.0001886,2]
[311849760,1705467032216,-606.8708796,0.0001886,2]
[311849761,1705467032225,-688.67953377,0.000189,2]
[311849762,1705467032235,-462.09728532,0.00019,2]
[311849785,1705467038108,-1118.71561509,0.00019,2]
[311849787,1705467038118,-157.05111516,0.00019416,2]
[311849789,1705467038128,-2995.12470388,0.0002,2]
[311849791,1705467038137,-151.67322949,0.0002,2]
[311849793,1705467038147,-237.84642437,0.0002,2]
[311849795,1705467038156,-154.9690062,0.0002,2]
[311849797,1705467038166,-200.0,0.00020744,2]
[311849798,1705467038176,-425.53656097,0.00022,2]
[311849800,1705467038186,-280.0,0.00022818,7]
[311849802,1705467038195,-1956.26050374,0.00023999,2]
[311849804,1705467038205,-1986.59469693,0.00024,2]
[311849805,1705467038214,-154.9690062,0.00025,2]
[311849808,1705467038224,-166.220792,0.00025981,2]
[311849810,1705467038234,-1120.31353969,0.00027118,2]
[311849812,1705467038243,-500.0,0.00027397,2]
[311849814,1705467038253,-600.0,0.00027533,2]
[311849815,1705467038262,-601.86641083,0.00027533,2]
[311849816,1705467038272,-625.93536711,0.00027534,2]
[311849817,1705467038281,-243.721129,0.00027624,2]
[311849819,1705467038291,-197.9207001,0.00027956,2]
[311849820,1705467038301,-184.67492025,0.00028036,2]
[311849821,1705467038310,-1030.88321994,0.00028624,2]
[311849822,1705467038320,-155.28086153,0.00028776,2]
[311849823,1705467038329,-155.24151066,0.00028777,2]
[311849824,1705467038339,-200.0,0.000291,4]
[311849825,1705467038349,-153.0,0.00029315,2]
[311849826,1705467038358,-154.29069251,0.00029892,2]
[311849827,1705467038368,-154.54943875,0.00029893,2]
[311849828,1705467038378,-2910.159785,0.000299,2]
[311849829,1705467038387,-172.06473578,0.00029936,2]
[311849830,1705467038397,-195.12427019,0.0003,4]
[311849831,1705467038406,-154.98450155,0.0003,2]
[311849832,1705467038416,-253.0,0.0003,2]
[311849833,1705467038425,-389.4411084,0.0003,4]
[311849834,1705467038434,-682.08739099,0.0003,3]
[311849835,1705467038444,-163.77478219,0.0003,5]
[311849836,1705467038453,-1000.0,0.0003,14]
[311849838,1705467038463,-306.0,0.0003,2]
[311849839,1705467038472,-154.9690062,0.00030025,2]
[311849840,1705467038483,-243.87038791,0.00030025,4]
[311849841,1705467038495,-168.59437659,0.00030034,4]
[311849842,1705467038505,-1054.16078813,0.00030035,4]
[311849843,1705467038514,-16171.60908519,0.00030036,2]
[311849844,1705467038526,-15905.2680538,0.00030036,3]
[311849845,1705467038535,-2823.17395231,0.00030129,4]
[311849846,1705467038544,-462.84411676,0.00030131,2]
[311849847,1705467038554,-10135.33451069,0.00030131,4]
[311849848,1705467038564,-688.6762337,0.00030131,4]
[311849849,1705467038573,-464.01008605,0.00030131,4]
[311849850,1705467038582,-154.9690062,0.00030131,4]
[311849851,1705467038592,-209.3112211,0.00030133,4]
[311849852,1705467038601,-2783.46908753,0.00030134,4]
[311849853,1705467038611,-641.54247479,0.00030134,4]
[311849854,1705467038620,-156.53527474,0.00030134,4]
[311849855,1705467038631,-157.68731987,0.00030134,4]
[311849856,1705467038641,-200.11719235,0.00030134,4]
[311849857,1705467038650,-178.90279891,0.00030134,4]
[311849858,1705467038660,-5204.78988606,0.00030134,4]
[311849859,1705467038669,-630.75243678,0.00030134,4]
[311849860,1705467038679,-589.65194832,0.00030134,4]
[311849861,1705467038688,-230.97793484,0.00030135,2]
[311849862,1705467038698,-155.20838123,0.00030135,4]
[311849863,1705467038708,-856.53608784,0.00030135,2]
[311849864,1705467038717,-151.0,0.00030136,2]
[311849865,1705467038726,-151.0,0.00030136,2]
[311849866,1705467038735,-151.0,0.00030136,2]
[311849867,1705467038745,-151.0,0.00030136,2]
[311849868,1705467038755,-151.0,0.00030136,2]
[311849870,1705467038764,-151.0,0.00030136,2]
[311849871,1705467038774,-151.0,0.00030136,2]
[311849872,1705467038784,-500.0,0.00030136,2]
[311849873,1705467038793,-500.0,0.00030136,2]
[311849874,1705467038803,-500.0,0.00030136,2]
[311849875,1705467038813,-500.0,0.00030136,2]
[311849876,1705467038822,-500.0,0.00030136,2]
[311849877,1705467038832,-500.0,0.00030136,2]
[311849878,1705467038842,-500.0,0.00030136,2]
[311849879,1705467038851,-500.0,0.00030136,2]
[311849880,1705467038861,-500.0,0.00030136,2]
[311849881,1705467038871,-500.0,0.00030136,2]
[311849882,1705467038880,-220.43608534,0.00030136,2]
[311849883,1705467038890,-624.82989269,0.00030136,2]
[311849884,1705467038899,-816.26,0.00030136,2]
[311849885,1705467038909,-500.0,0.00030136,2]
[311849886,1705467038919,-500.0,0.00030136,2]
[311849887,1705467038928,-500.0,0.00030136,2]
[311849888,1705467038937,-500.0,0.00030136,2]
[311849889,1705467038947,-500.0,0.00030136,2]
[311849890,1705467038957,-500.0,0.00030136,2]
[311849891,1705467038966,-201.56451602,0.00030136,2]
[311849892,1705467038976,-500.0,0.00030136,2]
[311849893,1705467038985,-500.0,0.00030136,2]
[311849894,1705467038995,-500.0,0.00030136,2]
[311849895,1705467039004,-500.0,0.00030136,2]
[311849896,1705467039014,-580.11050316,0.00030136,2]
[311849897,1705467039023,-500.0,0.00030136,2]
[311849898,1705467039032,-500.0,0.00030136,2]
[311849899,1705467039042,-500.0,0.00030136,2]
[311849900,1705467039052,-940.96,0.00030136,2]
[311849901,1705467039061,-500.0,0.00030136,2]
[311849902,1705467039070,-500.0,0.00030136,2]
[311849903,1705467039080,-500.0,0.00030136,2]
[311849904,1705467039089,-500.49039529,0.00030136,2]
[311849905,1705467039098,-701.51,0.00030136,2]
[311849906,1705467039108,-500.0,0.00030136,2]
[311849907,1705467039117,-500.0,0.00030136,2]
[311849908,1705467039126,-500.0,0.00030136,2]
[311849909,1705467039136,-500.0,0.00030136,2]
[311849910,1705467039231,-500.0,0.00030136,2]
[311849911,1705467039240,-500.0,0.00030136,2]
[311849912,1705467039250,-500.0,0.00030136,2]